Workbook

Sheet Calculator
A1: Preserving and Restoring Healthy Soil: Best Practices for Urban Construction
A2: Appendix A3: Soil Amendment Calculator | E2: Version 2.0 | F2: 2017-07-21
A3: This tool will calculate the application depths and volumes of compost and base topsoil needed to achieve project specifications for Planting Soil organic matter content and depth, based on user inputs of information regarding materials to be used (compost and base topsoil dry bulk density, % organic matter and unit cost) and project specifications for Planting Soil organic matter and depth.
A4: This tool will also calculate the volumes of imported Planting Soil and mulch needed and material costs where applicable, based on user inputs of information regarding project specifications for Planting Soil and mulch depth and unit costs for each type of material.
A5: Add additional rows below the example row for each planting area type and BMP option combination on the site and copy the appropriate values and formulas from Columns B to AB depending on the BMP option and planting area type to be constructed.
A6: Users should input materials and project specific values in the green cells or use default values where information is not available.
A7: For more information, refer to Preserving and Restoring Healthy Soil: Best Practices for Urban Construction (TRCA, 2012).
E8: TBD | F8: TOM | G8: POM | H8: CBD | I8: COM | J8: CID | K8: PSD | L8: CAD
A9: Planting Area and BMP Option Combination Identification Code | B9: BMP Option | C9: Planting Area Type | D9: Area (m2) | E9: Base Topsoil Bulk Density (g/cm3 dry weight) | F9: Base Topsoil or Subsoil Organic Matter (%)* | G9: Planting Soil Organic Matter target (%) | H9: Compost Bulk Density (g/cm3 dry weight)* | I9: Compost Organic Matter (%)* | J9: Compost Incorporation Depth (cm) | K9: Total Planting Soil Depth (cm, unconsolidated)** | L9: Compost Application Depth (cm) | M9: Base Topsoil Application Depth (cm) | N9: Imported Planting Soil Application Depth (cm) | O9: Mulch Application Depth (cm) | P9: Volume of Compost Required (m3) | Q9: Volume of Base Topsoil Required (m3) | R9: Volume of Imported Planting Soil Required (m3) | S9: Volume of Mulch Required (m3) | T9: Unit Cost of Compost ($/m3) | U9: Unit Cost of Base Topsoil ($/m3) | V9: Unit Cost of Imported Planting Soil ($/m3) | W9: Unit Cost of Mulch ($/m3) | X9: Total Cost of Compost ($) | Y9: Total Cost of Base Topsoil ($) | Z9: Total Cost of Imported Planting Soil ($) | AA9: Total Cost of Mulch ($) | AB9: Planting Area/BMP Option Total Materials Cost ($)
A10: Example: 001-2C | B10: Option 2 - Stockpile, replace and amend site or base topsoil | C10: Lawn | D10: 1000 | E10: 1.42 | F10: 3.5 | G10: 6 | H10: 0.4 | I10: 50 | J10: 20 | K10: 30 | L10: =(E10*(F10-G10)/(E10*(F10-G10)-H10*(I10-G10)))*J10 -> 3.356973995 | M10: =K10-L10 -> 26.643026 | N10: N/A | O10: N/A | P10: =L10/100*D10 -> 33.56973995 | Q10: =M10/100*D10 -> 266.43026 | R10: N/A | S10: N/A | T10: 20 | U10: 0 | V10: N/A | W10: N/A | X10: =P10*T10 -> 671.3947991 | Y10: =Q10*U10 -> 0 | Z10: N/A | AA10: N/A | AB10: =SUM(X10:AA10) -> 671.3947991
B12: Option 1 - Protect native vegetation and soil | C12: Natural Heritage Feature Buffer | D12: 1 | E12: N/A | F12: N/A | G12: N/A | H12: N/A | I12: N/A | J12: N/A | K12: N/A | L12: 3 | M12: N/A | N12: N/A | O12: N/A | P12: =L12/100*D12 -> 0.03 | Q12: N/A | R12: N/A | S12: N/A | T12: 20 | U12: N/A | V12: N/A | W12: N/A | X12: =P12*T12 -> 0.6 | Y12: N/A | Z12: N/A | AA12: N/A | AB12: =SUM(X12:AA12) -> 0.6
B13: Option 2 - Harvest, store, replace and amend site or base topsoil | C13: Lawn | D13: 1 | E13: 1.42 | F13: 2 | G13: 6 | H13: 0.4 | I13: 50 | J13: 20 | K13: 30 | L13: =(E13*(F13-G13)/(E13*(F13-G13)-H13*(I13-G13)))*J13 -> 4.879725086 | M13: =K13-L13 -> 25.12027491 | N13: N/A | O13: N/A | P13: 0.04879725086 | Q13: =M13/100*D13 -> 0.2512027491 | R13: N/A | S13: N/A | T13: 20 | U13: 0 | V13: N/A | W13: N/A | X13: 0.9759450172 | Y13: =Q13*U13 -> 0 | Z13: N/A | AA13: N/A | AB13: =SUM(X13:AA13) -> 0.9759450172
B14: Option 2 - Harvest, store, replace and amend site or base topsoil | C14: Planting bed | D14: 1 | E14: 1.42 | F14: 2 | G14: 11 | H14: 0.4 | I14: 50 | J14: 20 | K14: 30 | L14: =(E14*(F14-G14)/(E14*(F14-G14)-H14*(I14-G14)))*J14 -> 9.006342495 | M14: 20.99365751 | N14: N/A | O14: 8 | P14: 0.09006342495 | Q14: =M14/100*D14 -> 0.2099365751 | R14: N/A | S14: =(O14/100)*D14 -> 0.08 | T14: 20 | U14: 0 | V14: N/A | W14: 42 | X14: 1.801268499 | Y14: =Q14*U14 -> 0 | Z14: N/A | AA14: =S14*W14 -> 3.36 | AB14: 5.161268499
B15: Option 2 - Harvest, store, replace and amend site or base topsoil | C15: Tree pit | D15: 1 | E15: 1.42 | F15: 2 | G15: 11 | H15: 0.4 | I15: 50 | J15: 20 | K15: 30 | L15: 9.006342495 | M15: 20.99365751 | N15: N/A | O15: 8 | P15: 0.09006342495 | Q15: =M15/100*D15 -> 0.2099365751 | R15: N/A | S15: =(O15/100)*D15 -> 0.08 | T15: 20 | U15: 0 | V15: N/A | W15: 42 | X15: 1.801268499 | Y15: =Q15*U15 -> 0 | Z15: N/A | AA15: =S15*W15 -> 3.36 | AB15: 5.161268499
B16: Option 3 - Amend site subsoil | C16: Lawn | D16: 1 | E16: 1.42 | F16: 0 | G16: 6 | H16: 0.4 | I16: 50 | J16: 20 | K16: =J16 -> 20 | L16: 6.5237366 | M16: N/A | N16: N/A | O16: N/A | P16: 0.065237366 | Q16: N/A | R16: N/A | S16: N/A | T16: 20 | U16: N/A | V16: N/A | W16: N/A | X16: 1.30474732 | Y16: N/A | Z16: N/A | AA16: N/A | AB16: 1.30474732
B17: Option 3 - Amend site subsoil | C17: Planting bed | D17: 1 | E17: 1.42 | F17: 0 | G17: 11 | H17: 0.4 | I17: 50 | J17: 20 | K17: =J17 -> 20 | L17: 10.00640615 | M17: N/A | N17: N/A | O17: 8 | P17: 0.1000640615 | Q17: N/A | R17: N/A | S17: =(O17/100)*D17 -> 0.08 | T17: 20 | U17: N/A | V17: N/A | W17: 42 | X17: 2.00128123 | Y17: N/A | Z17: N/A | AA17: =S17*W17 -> 3.36 | AB17: 5.36128123
B18: Option 3 - Amend site subsoil | C18: Tree pit | D18: 1 | E18: 1.42 | F18: 0 | G18: 11 | H18: 0.4 | I18: 50 | J18: 20 | K18: 20 | L18: 10.00640615 | M18: N/A | N18: N/A | O18: 8 | P18: 0.1000640615 | Q18: N/A | R18: N/A | S18: =(O18/100)*D18 -> 0.08 | T18: 20 | U18: N/A | V18: N/A | W18: 42 | X18: 2.00128123 | Y18: N/A | Z18: N/A | AA18: =S18*W18 -> 3.36 | AB18: 5.36128123
B19: Option 4 - Import planting soil mix (or planting soil mix and base topsoil) | C19: Lawn | D19: 1 | E19: 1.42 | F19: N/A | G19: 6 | H19: N/A | I19: N/A | J19: N/A | K19: 30 | L19: N/A | M19: =K19-N19 -> 0 | N19: 30 | O19: N/A | P19: N/A | Q19: =M19/100*D19 -> 0 | R19: =N19/100*D19 -> 0.3 | S19: N/A | T19: N/A | U19: 10 | V19: 50 | W19: N/A | X19: N/A | Y19: =Q19*U19 -> 0 | Z19: =R19*V19 -> 15 | AA19: N/A | AB19: 15
B20: Option 4 - Import planting soil mix (or planting soil mix and base topsoil) | C20: Planting bed | D20: 1 | E20: 1.42 | F20: N/A | G20: 11 | H20: N/A | I20: N/A | J20: N/A | K20: 30 | L20: N/A | M20: 0 | N20: 30 | O20: 8 | P20: N/A | Q20: =M20/100*D20 -> 0 | R20: =N20/100*D20 -> 0.3 | S20: =O20/100*D20 -> 0.08 | T20: N/A | U20: 10 | V20: 50 | W20: 42 | X20: N/A | Y20: =Q20*U20 -> 0 | Z20: =R20*V20 -> 15 | AA20: =S20*W20 -> 3.36 | AB20: 18.36
B21: Option 4 - Import planting soil mix (or planting soil mix and base topsoil) | C21: Tree pit | D21: 1 | E21: 1.42 | F21: N/A | G21: 11 | H21: N/A | I21: N/A | J21: N/A | K21: 30 | L21: N/A | M21: 0 | N21: 30 | O21: 8 | P21: N/A | Q21: 0 | R21: 0.3 | S21: =O21/100*D21 -> 0.08 | T21: N/A | U21: 10 | V21: 50 | W21: 42 | X21: N/A | Y21: 0 | Z21: 15 | AA21: =S21*W21 -> 3.36 | AB21: 18.36
A22: Grand Total | B22: N/A | C22: N/A | D22: =SUM(D10:D11) -> 1000 | E22: N/A | F22: N/A | G22: N/A | H22: N/A | I22: N/A | J22: N/A | K22: N/A | L22: N/A | M22: N/A | N22: N/A | O22: N/A | P22: =SUM(P10:P11) -> 33.56973995 | Q22: =SUM(Q10:Q11) -> 266.43026 | R22: =SUM(R10:R11) -> 0 | S22: =SUM(S10:S11) -> 0 | T22: N/A | U22: N/A | V22: N/A | W22: =SUM(W10:W11) -> 0 | X22: 671.3947991 | Y22: 0 | Z22: 0 | AA22: 0 | AB22: 671.3947991
A23: * All bulk density values must be based on samples compacted to between 75 and 85% maximum dry density. To convert bulk density "as is" (i.e., moist weight) to dry weight, multiply by the total solids content (e.g., if moisture content is 25%, solids content is 75% so multiply by 0.75.
A24: ** All organic matter measurements must be based on Loss-On-Ignition (LOI) test method.
A25: *** Total Planting Soil depth includes compost incorporation and base topsoil horizons and should restore pre-construction topsoil (i.e., 'A' horizon) depth at a minimum, or 20 to 30 cm after consolidation and settling.

Sheet Custom Amend Rate Tables
A1: Preserving and Restoring Healthy Soil: Best Practices for Urban Construction
A2: Appendix A4: Table of custom compost application rates by soil type
A4: Examples comparing custom compost application depths for lawns and trees and planting beds with typical sandy and clayey textures, calculated using this Topsoil and Soil Amendment Calculator spreadsheet tool.
A6: LAWNS
B7: TBD | C7: TOM | D7: POM | E7: CBD | F7: COM | G7: CID | H7: CAD | I7: PSD | J7: TAD | K7: CAV
A8: Soil Texture | B8: Base Topsoil Bulk Density (g/cm3 dry weight)* | C8: Base Topsoil Organic Matter Content (%)** | D8: Target Planting Soil Organic Matter Content (%)** | E8: Compost Bulk Density (g/cm3 dry weight)* | F8: Compost Organic Matter Content (%)** | G8: Compost Incorporated Depth (cm) | H8: Custom Compost Application Depth (cm, unconsolidated) | I8: Planting Soil Depth (cm, unconsolidated)*** | J8: Custom Base Topsoil Application Depth (cm, unconsolidated) | K8: Custom Compost Amendment - Volumetric Mixing (% compost incorporation)
A9: Sandy | B9: 1.5 | C9: 0 | D9: 6 | E9: 0.4 | F9: 50 | G9: 20 | H9: =B9*(C9-D9)/(B9*(C9-D9)-E9*(F9-D9))*G9 -> 6.766917293 | I9: 30 | J9: =I9-H9 -> 23.23308271 | K9: =H9/G9*100 -> 33.83458647
B10: 1.5 | C10: 1 | D10: 6 | E10: 0.4 | F10: 50 | G10: 20 | H10: 5.976095618 | I10: 30 | J10: =I10-H10 -> 24.02390438 | K10: =H10/G10*100 -> 29.88047809
B11: 1.5 | C11: 2 | D11: 6 | E11: 0.4 | F11: 50 | G11: 20 | H11: 5.084745763 | I11: 30 | J11: =I11-H11 -> 24.91525424 | K11: 25.42372881
B12: 1.5 | C12: 3 | D12: 6 | E12: 0.4 | F12: 50 | G12: 20 | H12: 4.07239819 | I12: 30 | J12: =I12-H12 -> 25.92760181 | K12: 20.36199095
B13: 1.5 | C13: 4 | D13: 6 | E13: 0.4 | F13: 50 | G13: 20 | H13: 2.912621359 | I13: 30 | J13: 27.08737864 | K13: 14.5631068
B14: 1.5 | C14: 4.4 | D14: 6 | E14: 0.4 | F14: 50 | G14: 20 | H14: 2.4 | I14: 30 | J14: 27.6 | K14: 12
A15: Fine Silt and Clay | B15: 1.35 | C15: 0 | D15: 6 | E15: 0.4 | F15: 50 | G15: 20 | H15: 6.303501946 | I15: 30 | J15: =I15-H15 -> 23.69649805 | K15: 31.51750973
B16: 1.35 | C16: 1 | D16: 6 | E16: 0.4 | F16: 50 | G16: 20 | H16: 5.544147844 | I16: 30 | J16: =I16-H16 -> 24.45585216 | K16: 27.72073922
B17: 1.35 | C17: 2 | D17: 6 | E17: 0.4 | F17: 50 | G17: 20 | H17: 4.695652174 | I17: 30 | J17: =I17-H17 -> 25.30434783 | K17: 23.47826087
B18: 1.35 | C18: 3 | D18: 6 | E18: 0.4 | F18: 50 | G18: 20 | H18: 3.741339492 | I18: 30 | J18: =I18-H18 -> 26.25866051 | K18: 18.70669746
B19: 1.35 | C19: 4 | D19: 6 | E19: 0.4 | F19: 50 | G19: 20 | H19: 2.660098522 | I19: 30 | J19: 27.33990148 | K19: 13.30049261
B20: 1.35 | C20: 4.4 | D20: 6 | E20: 0.4 | F20: 50 | G20: 20 | H20: 2.186234818 | I20: 30 | J20: 27.81376518 | K20: 10.93117409
A23: PLANTING BEDS AND TREE PITS
B24: TBD | C24: TOM | D24: POM | E24: CBD | F24: COM* | G24: CID | H24: CAD | I24: PSD | J24: TAD | K24: CAV
A25: Soil Type | B25: Base Topsoil Bulk Density (g/cm3 dry weight)* | C25: Base Topsoil Organic Matter Content (%)** | D25: Target Planting Soil Organic Matter Content (%)** | E25: Compost Bulk Density (g/cm3 dry weight)* | F25: Compost Organic Matter Content (%)** | G25: Compost Incorporation Depth (cm, unconsolidated) | H25: Custom Compost Application Depth (cm, unconsolidated) | I25: Planting Soil Depth (cm, unconsolidated)*** | J25: Custom Base Topsoil Application Depth (cm, unconsolidated) | K25: Custom Compost Amendment - Volumetric Mixing (% compost incorporation)
A26: Sandy Soil | B26: 1.5 | C26: 0 | D26: 11 | E26: 0.4 | F26: 50 | G26: 20 | H26: =B26*(C26-D26)/(B26*(C26-D26)-E26*(F26-D26))*G26 -> 10.28037383 | I26: 50 | J26: =I26-H26 -> 39.71962617 | K26: =H26/G26*100 -> 51.40186916
B27: 1.5 | C27: 1 | D27: 11 | E27: 0.4 | F27: 50 | G27: 20 | H27: 9.803921569 | I27: 50 | J27: =I27-H27 -> 40.19607843 | K27: =H27/G27*100 -> 49.01960784
B28: 1.5 | C28: 2 | D28: 11 | E28: 0.4 | F28: 50 | G28: 20 | H28: 9.278350515 | I28: 50 | J28: =I28-H28 -> 40.72164948 | K28: 46.39175258
B29: 1.5 | C29: 3 | D29: 11 | E29: 0.4 | F29: 50 | G29: 20 | H29: 8.695652174 | I29: 50 | J29: =I29-H29 -> 41.30434783 | K29: 43.47826087
B30: 1.5 | C30: 4 | D30: 11 | E30: 0.4 | F30: 50 | G30: 20 | H30: 8.045977011 | I30: 50 | J30: 41.95402299 | K30: 40.22988506
B31: 1.5 | C31: 5 | D31: 11 | E31: 0.4 | F31: 50 | G31: 20 | H31: 7.317073171 | I31: 50 | J31: =I31-H31 -> 42.68292683 | K31: =H31/G31*100 -> 36.58536585
B32: 1.5 | C32: 6 | D32: 11 | E32: 0.4 | F32: 50 | G32: 20 | H32: 6.493506494 | I32: 50 | J32: 43.50649351 | K32: =H32/G32*100 -> 32.46753247
B33: 1.5 | C33: 7 | D33: 11 | E33: 0.4 | F33: 50 | G33: 20 | H33: 5.555555556 | I33: 50 | J33: 44.44444444 | K33: 27.77777778
B34: 1.5 | C34: 8 | D34: 11 | E34: 0.4 | F34: 50 | G34: 20 | H34: 4.47761194 | I34: 50 | J34: 45.52238806 | K34: 22.3880597
B35: 1.5 | C35: 9 | D35: 11 | E35: 0.4 | F35: 50 | G35: 20 | H35: 3.225806452 | I35: 50 | J35: 46.77419355 | K35: 16.12903226
B36: 1.5 | C36: 9.4 | D36: 11 | E36: 0.4 | F36: 50 | G36: 20 | H36: 2.666666667 | I36: 50 | J36: 47.33333333 | K36: 13.33333333
A37: Fine Silt and Clay Soils | B37: 1.35 | C37: 0 | D37: 11 | E37: 0.4 | F37: 50 | G37: 20 | H37: 9.753694581 | I37: 50 | J37: =I37-H37 -> 40.24630542 | K37: =H37/G37*100 -> 48.76847291
B38: 1.35 | C38: 1 | D38: 11 | E38: 0.4 | F38: 50 | G38: 20 | H38: 9.278350515 | I38: 50 | J38: =I38-H38 -> 40.72164948 | K38: =H38/G38*100 -> 46.39175258
B39: 1.35 | C39: 2 | D39: 11 | E39: 0.4 | F39: 50 | G39: 20 | H39: 8.756756757 | I39: 50 | J39: =I39-H39 -> 41.24324324 | K39: 43.78378378
B40: 1.35 | C40: 3 | D40: 11 | E40: 0.4 | F40: 50 | G40: 20 | H40: 8.181818182 | I40: 50 | J40: =I40-H40 -> 41.81818182 | K40: 40.90909091
B41: 1.35 | C41: 4 | D41: 11 | E41: 0.4 | F41: 50 | G41: 20 | H41: 7.54491018 | I41: 50 | J41: =I41-H41 -> 42.45508982 | K41: 37.7245509
B42: 1.35 | C42: 5 | D42: 11 | E42: 0.4 | F42: 50 | G42: 20 | H42: 6.835443038 | I42: 50 | J42: 43.16455696 | K42: =H42/G42*100 -> 34.17721519
B43: 1.35 | C43: 6 | D43: 11 | E43: 0.4 | F43: 50 | G43: 20 | H43: 6.040268456 | I43: 50 | J43: 43.95973154 | K43: =H43/G43*100 -> 30.20134228
B44: 1.35 | C44: 7 | D44: 11 | E44: 0.4 | F44: 50 | G44: 20 | H44: 5.142857143 | I44: 50 | J44: 44.85714286 | K44: 25.71428571
B45: 1.35 | C45: 8 | D45: 11 | E45: 0.4 | F45: 50 | G45: 20 | H45: 4.122137405 | I45: 50 | J45: 45.8778626 | K45: 20.61068702
B46: 1.35 | C46: 9 | D46: 11 | E46: 0.4 | F46: 50 | G46: 20 | H46: 2.950819672 | I46: 50 | J46: 47.04918033 | K46: 14.75409836
B47: 1.35 | C47: 9.4 | D47: 11 | E47: 0.4 | F47: 50 | G47: 20 | H47: 2.432432432 | I47: 50 | J47: 47.56756757 | K47: 12.16216216
B49: If concentration of any of the 11 regulated metals in the compost to be used are near the maximum allowable limits in Ontario and calculated compost application depth is >7 cm, calculation of the maximum allowable compost application rate that would still meet CFIA Trade Memorandum T-4-93 limits for metal loads using Ontario Compost Quality Standards Appendix 7 needs to be performed to determine if the compost is suitable for amendment at that depth.
A50: * | B50: All bulk density values must be based on samples compacted to between 75 and 85% maximum dry density. To convert bulk density "as is" (i.e., moist weight) to dry weight, multiply by the total solids content (e.g., if moisture content is 30%, solids content is 70% so multiply by 0.7).
A51: ** | B51: All organic matter values must be based on Loss-On-Ignition test (LOI).
A52: *** | B52: Total Planting Soil depth includes compost incorportion and base topsoil horizons and should restore pre-construction depth at a minimum or 20 to 30 cm after consolidation and settling.
